bitfinex/quotes_BTCUSD_20251110
["timestamp","ask_amount","ask_price","bid_price","bid_amount"]
[1762753586711,0.23970735,106200.0,106190.0,0.69497227]
[1762753586914,0.05138344,106200.0,106190.0,0.69497227]
[1762753587280,0.23970735,106200.0,106190.0,0.69497227]
[1762753589613,0.23970735,106200.0,106190.0,0.44215696]
[1762753590134,0.23970735,106200.0,106190.0,0.69497227]
[1762753590371,0.05138344,106200.0,106190.0,0.69497227]
[1762753591271,0.23970735,106200.0,106190.0,0.69497227]
[1762753591638,0.05138344,106200.0,106190.0,0.69497227]
[1762753591840,0.23970735,106200.0,106190.0,0.69497227]
[1762753592644,0.05138344,106200.0,106190.0,0.69497227]
[1762753593189,0.23970735,106200.0,106190.0,0.69497227]
[1762753593592,0.05138344,106200.0,106190.0,0.69497227]
[1762753593947,0.23970735,106200.0,106190.0,0.69497227]
[1762753594148,0.23970735,106200.0,106190.0,0.44215696]
[1762753594571,0.23970735,106200.0,106190.0,0.25381531]
[1762753594828,0.81113054,106200.0,106190.0,0.001]
[1762753595061,0.81160134,106200.0,106190.0,0.001]
[1762753595267,0.84778362,106200.0,106190.0,0.001]
[1762753595473,1.14211893,106200.0,106190.0,0.001]
[1762753595872,1.15971743,106200.0,106190.0,0.001]
[1762753596200,0.18837656,106180.0,106160.0,0.70344329]
[1762753596448,0.01201,106170.0,106160.0,0.70349148]
[1762753596692,0.20038713,106170.0,106160.0,0.70349148]
[1762753596873,0.01201,106170.0,106160.0,0.45067617]
[1762753597079,0.20038713,106170.0,106160.0,0.45067617]
[1762753597220,0.21673713,106170.0,106160.0,0.45067617]
[1762753597679,0.21773713,106170.0,106160.0,0.45367617]
[1762753597884,0.24189713,106170.0,106160.0,0.45367617]
[1762753599002,0.24189713,106170.0,106160.0,0.44425837]
[1762753599557,0.05352,106170.0,106160.0,0.69707368]
[1762753601029,0.24189713,106170.0,106160.0,0.69707368]
[1762753601440,0.05352,106170.0,106160.0,0.69707368]
[1762753601617,0.05352,106170.0,106160.0,0.79517541]
[1762753606311,0.05352,106170.0,106160.0,0.44425837]
[1762753606783,0.001,106170.0,106160.0,0.76286625]
[1762753606958,0.001,106170.0,106160.0,1.08327081]
[1762753607528,0.001,106170.0,106160.0,0.8304555]
[1762753608332,0.01319,106170.0,106160.0,0.76286625]
[1762753608534,0.05355,106170.0,106160.0,0.76286625]
[1762753609158,0.05355,106170.0,106160.0,0.69707368]
[1762753609607,0.05355,106170.0,106160.0,0.44425837]
[1762753609608,0.24192713,106170.0,106160.0,0.44425837]
[1762753609971,0.05355,106170.0,106160.0,0.44425837]
[1762753610374,0.05355,106170.0,106160.0,0.69707368]
[1762753610571,0.24192713,106170.0,106160.0,0.69707368]
[1762753610777,0.24192713,106170.0,106160.0,0.44425837]
[1762753611015,0.49474244,106170.0,106160.0,0.00304819]
[1762753611156,0.74755775,106170.0,106160.0,0.00304819]
[1762753611928,0.74755775,106170.0,106160.0,4.819e-05]
[1762753612234,0.74755775,106170.0,106160.0,0.00104819]
[1762753612370,0.74655775,106170.0,106160.0,0.00104819]
[1762753612789,0.74855775,106170.0,106160.0,0.00104819]
[1762753613001,0.49574244,106170.0,106160.0,0.00104819]
[1762753613385,0.24292713,106170.0,106160.0,0.00104819]
[1762753613584,0.49574244,106170.0,106160.0,0.00104819]
[1762753618156,0.24292713,106170.0,106160.0,0.00104819]
[1762753618399,0.49574244,106170.0,106160.0,0.00104819]
[1762753619404,0.49621338,106170.0,106160.0,0.00104819]
[1762753619640,0.24339807,106170.0,106160.0,0.44225837]
[1762753619847,0.24292713,106170.0,106160.0,0.18944306]
[1762753620048,0.24292713,106170.0,106160.0,0.53060685]
[1762753620967,0.24292713,106170.0,106160.0,0.44225837]
[1762753621143,0.24292713,106170.0,106160.0,0.2538635]
[1762753621554,0.24292713,106170.0,106160.0,0.00104819]
[1762753621756,0.24339807,106170.0,106160.0,0.00104819]
[1762753621973,0.03024,106170.0,106160.0,0.69507368]
[1762753622178,0.01419,106170.0,106160.0,1.04599072]
[1762753622381,0.002,106170.0,106160.0,1.11178329]
[1762753622851,0.002,106170.0,106160.0,0.35333736]
[1762753623079,0.002,106170.0,106160.0,1.11178329]
[1762753625253,0.002,106170.0,106160.0,1.17937254]
[1762753625848,0.002,106170.0,106160.0,1.17984352]
[1762753626712,0.002,106170.0,106160.0,1.17937254]
[1762753627150,0.002,106170.0,106160.0,1.17984352]
[1762753629649,0.002,106170.0,106160.0,1.17937254]
[1762753630949,0.002,106170.0,106160.0,1.09551459]
[1762753634016,0.002,106170.0,106160.0,1.77328419]
[1762753634193,0.002,106170.0,106160.0,1.80155613]
[1762753634427,0.002,106170.0,106160.0,1.46426214]
[1762753635191,0.01151,106180.0,106170.0,0.18836789]
[1762753635327,0.05036,106180.0,106170.0,0.59329651]
[1762753635737,0.02728,106180.0,106170.0,0.59329651]
[1762753635941,0.01151,106180.0,106170.0,0.59329651]
[1762753636140,0.03459,106190.0,106180.0,0.18835938]
[1762753636549,0.23870165,106190.0,106180.0,0.18835938]
[1762753637435,0.18835938,106180.0,106170.0,0.33776314]
[1762753637598,0.18835938,106180.0,106170.0,0.09810173]
[1762753637848,0.18935938,106180.0,106170.0,0.43539572]
[1762753638049,0.18835938,106180.0,106170.0,0.33776358]
[1762753638178,0.18835938,106180.0,106170.0,0.33729399]
[1762753638492,0.18837713,106170.0,106160.0,0.65963523]
[1762753638935,0.20186938,106180.0,106160.0,0.65963523]
[1762753639146,0.20186938,106180.0,106170.0,0.001]
[1762753639671,0.20186938,106180.0,106160.0,0.74825655]
[1762753639828,0.20186938,106180.0,106160.0,0.75125655]
[1762753640227,0.22494938,106180.0,106160.0,0.75125655]
[1762753640458,0.22494938,106180.0,106160.0,0.74825655]
[1762753640673,0.20186938,106180.0,106170.0,0.001]
[1762753640882,0.55293337,106180.0,106170.0,0.001]
[1762753641045,0.21611027,106180.0,106170.0,0.001]
[1762753641239,0.23919027,106180.0,106170.0,0.001]
[1762753641659,0.24119027,106180.0,106170.0,0.001]
[1762753641869,0.23919027,106180.0,106170.0,0.001]
[1762753642314,0.18837713,106170.0,106160.0,0.18890712]
[1762753642558,0.19976713,106170.0,106160.0,0.18843614]
[1762753642843,0.01139,106170.0,106160.0,0.18943614]
[1762753643202,0.19976713,106170.0,106160.0,0.18843614]
[1762753643411,0.22594938,106180.0,106170.0,0.18837713]
[1762753643796,0.23920938,106180.0,106170.0,0.18837713]
[1762753644746,0.24220938,106180.0,106170.0,0.18837713]
[1762753645772,0.24320938,106180.0,106170.0,0.18837713]
[1762753646196,0.24320938,106180.0,106160.0,0.73879501]
[1762753646322,0.18837713,106170.0,106160.0,0.60537473]
[1762753646549,0.18837713,106170.0,106160.0,0.60490376]
[1762753647831,0.19037713,106170.0,106160.0,0.60490376]
[1762753648015,0.21802713,106170.0,106160.0,0.0792149]
[1762753648238,0.24289713,106170.0,106160.0,0.41650889]
[1762753648444,0.24289713,106170.0,106160.0,0.0792149]
[1762753648568,0.24289713,106170.0,106160.0,0.26760977]
[1762753649197,0.24289713,106170.0,106160.0,0.26860977]
[1762753649398,0.24289713,106170.0,106160.0,0.3362444]
[1762753650811,0.24289713,106170.0,106160.0,0.14784953]
[1762753651014,0.58019112,106170.0,106160.0,0.00104819]
[1762753652193,0.57819112,106170.0,106160.0,0.00104819]
[1762753652614,0.57819112,106170.0,106160.0,4.819e-05]
[1762753652615,0.58319112,106170.0,106160.0,4.819e-05]
[1762753653028,0.58419112,106170.0,106160.0,4.819e-05]
[1762753653546,0.58319112,106170.0,106160.0,4.819e-05]
[1762753653769,0.58619112,106170.0,106160.0,4.819e-05]
[1762753654197,0.58666206,106170.0,106160.0,4.819e-05]
[1762753654408,0.61494573,106170.0,106160.0,4.819e-05]
[1762753657783,0.65065707,106170.0,106160.0,4.819e-05]
[1762753658206,0.65112801,106170.0,106160.0,4.819e-05]
[1762753660079,0.31383402,106170.0,106160.0,4.819e-05]
[1762753660284,0.65112801,106170.0,106160.0,4.819e-05]
[1762753668090,0.31383402,106170.0,106160.0,4.819e-05]
[1762753668502,0.27765174,106170.0,106160.0,4.819e-05]
[1762753668724,0.27765174,106170.0,106160.0,0.18844306]
[1762753669104,0.61447479,106170.0,106160.0,0.03773369]
[1762753669305,0.61447479,106170.0,106160.0,4.819e-05]
[1762753669825,0.61494573,106170.0,106160.0,4.819e-05]
[1762753671970,0.27765174,106170.0,106160.0,4.819e-05]
[1762753672187,0.61494573,106170.0,106160.0,4.819e-05]
[1762753673068,0.27765174,106170.0,106160.0,4.819e-05]
[1762753673474,0.61494573,106170.0,106160.0,4.819e-05]
[1762753674271,0.27765174,106170.0,106160.0,4.819e-05]
[1762753674473,0.61494573,106170.0,106160.0,4.819e-05]
[1762753676478,0.61447479,106170.0,106160.0,4.819e-05]
[1762753676720,0.61494573,106170.0,106160.0,4.819e-05]
[1762753676923,0.27765174,106170.0,106160.0,4.819e-05]
[1762753677272,0.61494573,106170.0,106160.0,4.819e-05]
[1762753679769,0.61447479,106170.0,106160.0,4.819e-05]
[1762753680136,0.61494573,106170.0,106160.0,4.819e-05]
[1762753680572,0.27765174,106170.0,106160.0,4.819e-05]
[1762753680782,0.61494573,106170.0,106160.0,4.819e-05]
[1762753681135,0.65112801,106170.0,106160.0,4.819e-05]
[1762753683052,0.31383402,106170.0,106160.0,4.819e-05]
[1762753683272,0.27765174,106170.0,106160.0,4.819e-05]
[1762753683472,0.61494573,106170.0,106160.0,4.819e-05]
[1762753685654,0.2771808,106170.0,106160.0,0.18844306]
[1762753685772,0.24889713,106170.0,106160.0,0.60566243]
[1762753685980,0.24889713,106170.0,106160.0,0.26836844]
[1762753687308,0.06052,106170.0,106160.0,0.26836844]
[1762753687518,0.008,106170.0,106160.0,0.60613299]
[1762753687720,0.008,106170.0,106160.0,0.60566243]
[1762753688086,0.008,106170.0,106160.0,0.60613299]
[1762753688498,0.005,106170.0,106160.0,0.60613299]
[1762753688717,0.22467033,106180.0,106160.0,0.52620761]
[1762753688938,0.001,106170.0,106160.0,0.52620761]
[1762753689141,0.004,106170.0,106160.0,0.52620761]
[1762753689594,0.003,106170.0,106160.0,0.52620761]
[1762753689802,0.24405713,106170.0,106160.0,4.819e-05]
[1762753690000,0.24405713,106170.0,106160.0,0.00051917]
[1762753690249,0.24405713,106170.0,106160.0,4.819e-05]
[1762753690803,0.24405713,106170.0,106160.0,0.18844306]
[1762753691346,0.24405713,106170.0,106160.0,4.819e-05]
[1762753691829,0.24505713,106170.0,106160.0,4.819e-05]
[1762753693886,0.24505713,106170.0,106160.0,0.18844306]
[1762753695548,0.05668,106170.0,106160.0,0.1989795]
[1762753695751,0.05668,106170.0,106160.0,0.44152667]
[1762753696083,0.01594,106170.0,106160.0,0.78953813]
[1762753697759,0.20431713,106170.0,106160.0,0.79000869]
[1762753697964,0.20431713,106170.0,106160.0,0.53692508]
[1762753698141,0.20431713,106170.0,106160.0,0.44152667]
[1762753698548,0.22025713,106170.0,106160.0,0.44152667]
[1762753698783,0.24505713,106170.0,106160.0,4.819e-05]
[1762753699890,0.24505713,106170.0,106160.0,0.18844306]
[1762753701144,0.24505713,106170.0,106160.0,4.819e-05]
[1762753702481,0.49814074,106170.0,106160.0,4.819e-05]
[1762753703496,0.24505713,106170.0,106160.0,4.819e-05]
[1762753703692,0.49814074,106170.0,106160.0,4.819e-05]
[1762753704108,0.24505713,106170.0,106160.0,0.18844306]
[1762753704353,0.03188,106170.0,106160.0,0.53645452]
[1762753704543,0.05524,106170.0,106160.0,0.53692508]
[1762753704911,0.03188,106170.0,106160.0,0.53692508]
[1762753705231,0.22025713,106170.0,106160.0,0.53692508]
[1762753705434,0.22025713,106170.0,106160.0,0.53645452]
[1762753706187,0.22025713,106170.0,106160.0,0.44152667]
[1762753706563,0.03188,106170.0,106160.0,0.44152667]
[1762753706787,0.03188,106170.0,106160.0,0.44199723]
[1762753707364,0.22025713,106170.0,106160.0,0.44199723]
[1762753707553,0.24361713,106170.0,106160.0,0.44152667]
[1762753708115,0.24361713,106170.0,106160.0,4.819e-05]
[1762753708318,0.49670074,106170.0,106160.0,0.00051725]
[1762753708535,0.74978435,106170.0,106160.0,4.819e-05]
[1762753710103,0.24361713,106170.0,106160.0,0.18844306]
[1762753710331,0.49670074,106170.0,106160.0,0.18844306]
[1762753711091,0.49670074,106170.0,106160.0,4.819e-05]
[1762753711589,0.49670074,106170.0,106160.0,0.18844306]
[1762753711839,0.49670074,106170.0,106160.0,4.819e-05]
[1762753712293,0.49670074,106170.0,106160.0,0.18844306]
[1762753712739,0.49670074,106170.0,106160.0,4.819e-05]
[1762753712993,0.49670074,106170.0,106160.0,0.18844306]
[1762753714672,0.24361713,106170.0,106160.0,0.18844306]
[1762753715004,0.05524,106170.0,106160.0,0.18844306]
[1762753715222,0.24361713,106170.0,106160.0,0.18844306]
[1762753715768,0.01594,106170.0,106160.0,0.53645523]
[1762753715960,0.01594,106170.0,106160.0,0.53692429]
[1762753716161,0.0551,106170.0,106160.0,0.53692429]
[1762753716977,0.004,106170.0,106160.0,0.53645523]
[1762753718790,0.24399713,106170.0,106160.0,0.18891403]
[1762753718995,0.24399713,106170.0,106160.0,0.18844306]
[1762753722912,0.05562,106170.0,106160.0,0.18844306]
[1762753723112,0.01646,106170.0,106160.0,0.44152667]
[1762753723730,0.004,106170.0,106160.0,0.44152667]
[1762753723952,0.004,106170.0,106160.0,0.79318299]
[1762753724249,0.004,106170.0,106160.0,0.79271201]
[1762753724998,0.004,106170.0,106160.0,1.04626468]
[1762753725230,0.004,106170.0,106160.0,0.79318107]
[1762753725944,0.004,106170.0,106160.0,0.79271201]
[1762753726328,0.004,106170.0,106160.0,0.79318257]
[1762753733270,0.004,106170.0,106160.0,1.20077645]
[1762753735159,0.004,106170.0,106160.0,1.4533895]
[1762753735363,0.004,106170.0,106160.0,1.48166485]
[1762753735599,0.004,106170.0,106160.0,1.48213541]
[1762753736021,0.004,106170.0,106160.0,1.2290518]
[1762753736446,0.004,106170.0,106160.0,0.76499723]
[1762753736692,0.47726345,106180.0,106170.0,0.18837713]
[1762753736898,0.49249345,106180.0,106170.0,0.18837713]
[1762753737115,0.74557706,106180.0,106160.0,0.51491362]
[1762753737320,0.49251074,106170.0,106160.0,0.19144306]
[1762753737531,0.49251074,106170.0,106160.0,0.18844306]
[1762753737966,0.30413361,106170.0,106160.0,0.18844306]
[1762753738176,0.05105,106170.0,106160.0,0.18844306]
[1762753738575,0.05105,106170.0,106160.0,0.18944306]
[1762753738916,0.49251074,106170.0,106160.0,0.18944306]
[1762753739143,0.05205,106170.0,106160.0,0.18944306]
[1762753740359,0.24042713,106170.0,106160.0,0.18944306]
[1762753740599,0.05205,106170.0,106160.0,0.18944306]
[1762753740810,0.001,106170.0,106160.0,0.50065537]
[1762753741013,0.001,106170.0,106160.0,0.74096418]
[1762753741426,0.001,106170.0,106160.0,0.99404779]
[1762753742841,0.001,106170.0,106160.0,0.74096418]
[1762753743440,0.001,106170.0,106160.0,1.07864167]
[1762753744076,0.001,106170.0,106160.0,1.07911223]
[1762753744501,0.001,106170.0,106160.0,0.82602862]
[1762753747636,0.001,106170.0,106160.0,1.07911265]
[1762753748108,0.001,106170.0,106160.0,1.40164167]
[1762753748503,0.001,106170.0,106160.0,1.4299163]
[1762753749442,0.001,106170.0,106160.0,1.43038728]
[1762753752649,0.02839,106170.0,106160.0,1.17730364]
[1762753752868,0.001,106170.0,106160.0,0.92391732]
[1762753753876,0.001,106170.0,106160.0,1.0085112]
[1762753754504,0.001,106170.0,106160.0,1.34588598]
[1762753758199,0.001,106170.0,106160.0,1.0085112]
[1762753758847,0.001,106170.0,106160.0,1.34588598]
[1762753761106,0.001,106170.0,106160.0,1.34541503]
[1762753761342,0.001,106170.0,106160.0,1.26082115]
[1762753761672,0.001,106170.0,106160.0,1.26129213]
[1762753761874,0.001,106170.0,106160.0,1.37914207]
[1762753763065,0.001,106170.0,106160.0,1.71651685]
[1762753763795,0.001,106170.0,106160.0,1.37914207]
[1762753764362,0.00047085,106190.0,106180.0,0.18835938]
[1762753764575,0.01160344,106200.0,106190.0,0.18834165]
[1762753765609,0.05203344,106200.0,106190.0,0.18834165]
[1762753765815,0.24035735,106200.0,106190.0,0.18834165]
[1762753766647,0.24435735,106200.0,106190.0,0.18834165]
[1762753767089,0.18834165,106190.0,106180.0,0.18835938]
[1762753767311,0.24111165,106190.0,106180.0,0.18835938]
[1762753767969,0.05277,106190.0,106180.0,0.18835938]
[1762753768346,0.24411165,106190.0,106180.0,0.18835938]
[1762753768758,0.24611165,106190.0,106180.0,0.18835938]
[1762753769577,0.05777,106190.0,106180.0,0.18835938]
[1762753769949,0.24611165,106190.0,106180.0,0.27016427]
[1762753770153,0.24611165,106190.0,106180.0,0.18835938]
[1762753770561,0.05777,106190.0,106180.0,0.18835938]
[1762753770966,0.0332,106190.0,106180.0,0.18835938]
[1762753771322,0.24611165,106190.0,106180.0,0.18835938]
[1762753774349,0.24611165,106190.0,106170.0,0.60141735]
[1762753774611,0.2465825,106190.0,106170.0,0.60141735]
[1762753774812,0.24112938,106180.0,106170.0,0.18837713]
[1762753776642,0.57850416,106180.0,106170.0,0.18837713]
[1762753776956,0.57850416,106180.0,106160.0,0.1978628]
[1762753776957,0.18837713,106170.0,106160.0,0.1978628]
[1762753777162,0.24114713,106170.0,106160.0,0.1978628]
[1762753777355,0.57852191,106170.0,106160.0,4.819e-05]
[1762753777896,0.05324094,106170.0,106160.0,0.19044306]
[1762753778189,0.05277,106170.0,106160.0,0.26958734]
[1762753778374,0.05377,106170.0,106160.0,0.26958734]
[1762753778586,0.05377,106170.0,106160.0,0.26758734]
[1762753779021,0.24214713,106170.0,106160.0,0.26758734]
[1762753779222,0.24214713,106170.0,106160.0,4.819e-05]
[1762753779424,0.24261807,106170.0,106160.0,4.819e-05]
[1762753779841,0.24261807,106170.0,106160.0,0.18844306]
[1762753780027,0.24214713,106170.0,106160.0,0.18844306]
[1762753780219,0.24214713,106170.0,106160.0,4.819e-05]
[1762753780423,0.24261807,106170.0,106160.0,4.819e-05]
[1762753782910,0.24214713,106170.0,106160.0,4.819e-05]
[1762753783120,0.63341688,106170.0,106160.0,4.819e-05]
[1762753783293,0.69920945,106170.0,106160.0,4.819e-05]
[1762753783500,0.69968039,106170.0,106160.0,4.819e-05]
[1762753783702,0.64531448,106170.0,106160.0,4.819e-05]
[1762753783902,0.64578542,106170.0,106160.0,4.819e-05]
[1762753784083,0.67406834,106170.0,106160.0,4.819e-05]
[1762753784426,0.67606834,106170.0,106160.0,4.819e-05]
[1762753784605,0.68006834,106170.0,106160.0,4.819e-05]
[1762753785176,0.70581294,106170.0,106160.0,4.819e-05]
[1762753785654,0.6795974,106170.0,106160.0,4.819e-05]
[1762753786004,0.68006834,106170.0,106160.0,4.819e-05]
[1762753786204,0.6795974,106170.0,106160.0,4.819e-05]
[1762753786408,0.71577968,106170.0,106160.0,4.819e-05]
[1762753787086,0.71625062,106170.0,106160.0,4.819e-05]
[1762753789064,0.65045805,106170.0,106160.0,4.819e-05]
[1762753789706,0.71625062,106170.0,106160.0,4.819e-05]
[1762753792417,0.71577968,106170.0,106160.0,4.819e-05]
[1762753792640,0.71625062,106170.0,106160.0,4.819e-05]
[1762753793563,0.37887584,106170.0,106160.0,4.819e-05]
[1762753793767,0.71625062,106170.0,106160.0,4.819e-05]
[1762753793974,0.71577968,106170.0,106160.0,4.819e-05]
[1762753794147,1.03925062,106170.0,106160.0,4.819e-05]
[1762753794291,1.47425619,106170.0,106160.0,4.819e-05]
[1762753794696,1.47472713,106170.0,106160.0,4.819e-05]
[1762753795519,1.90663919,106170.0,106160.0,4.819e-05]
[1762753796144,1.90711013,106170.0,106160.0,4.819e-05]
[1762753796366,1.90711013,106170.0,106100.0,0.28298807]
[1762753796367,0.18846588,106120.0,106100.0,0.28298807]
[1762753796703,0.23934364,106110.0,106100.0,0.09814994]
[1762753797543,0.57671842,106110.0,106100.0,4.821e-05]
[1762753798041,0.23934364,106110.0,106100.0,4.821e-05]
[1762753798269,0.23934364,106110.0,106100.0,0.00304821]
[1762753798708,0.23934364,106110.0,106100.0,0.19854962]
[1762753798881,0.57671842,106110.0,106100.0,0.01004821]
[1762753799024,0.57718962,106110.0,106100.0,0.00304821]
[1762753799587,0.57718962,106110.0,106100.0,4.821e-05]
[1762753799956,0.57718962,106110.0,106100.0,0.00204821]
[1762753800353,0.57718962,106110.0,106100.0,4.821e-05]
[1762753800573,0.23981484,106110.0,106100.0,0.18854962]
[1762753800770,0.23934364,106110.0,106100.0,4.821e-05]
[1762753800948,0.23981484,106110.0,106100.0,4.821e-05]
[1762753801348,0.0523312,106110.0,106100.0,0.5259244]
[1762753801548,0.0523312,106110.0,106100.0,0.26659272]
[1762753801549,0.21780364,106110.0,106100.0,0.26659272]
[1762753801771,0.24034364,106110.0,106100.0,0.26659272]
[1762753801974,0.05186,106110.0,106100.0,0.18854962]
[1762753802173,0.24034364,106110.0,106100.0,0.18854962]
[1762753804249,0.24034364,106110.0,106100.0,4.821e-05]
[1762753804620,0.64351099,106110.0,106100.0,4.821e-05]
[1762753805249,0.67969327,106110.0,106100.0,4.821e-05]
[1762753805518,0.819315,106110.0,106100.0,4.821e-05]
[1762753805723,0.83678514,106110.0,106100.0,4.821e-05]
[1762753805928,0.83725634,106110.0,106100.0,4.821e-05]
[1762753806145,0.83678514,106110.0,106100.0,4.821e-05]
[1762753806358,0.83578514,106110.0,106100.0,4.821e-05]
[1762753806537,0.83825634,106110.0,106100.0,4.821e-05]
[1762753806693,1.16078514,106110.0,106100.0,4.821e-05]
[1762753807067,1.16378514,106110.0,106100.0,4.821e-05]
[1762753807283,1.16425634,106110.0,106100.0,4.821e-05]
[1762753807491,0.72877983,106110.0,106100.0,4.821e-05]
[1762753807689,1.00036204,106110.0,106100.0,4.821e-05]
[1762753812444,1.00036204,106110.0,106100.0,0.11764821]
[1762753813474,0.95884204,106110.0,106100.0,0.11764821]
[1762753813682,1.00036204,106110.0,106100.0,0.11764821]
[1762753814919,1.16987876,106110.0,106100.0,0.11764821]
[1762753816383,1.52142624,106110.0,106100.0,0.11764821]
[1762753816761,1.58721881,106110.0,106100.0,0.11764821]
[1762753819062,1.56974867,106110.0,106100.0,0.11764821]
[1762753819269,1.5872164,106110.0,106100.0,0.11764821]
[1762753820844,1.5867452,106110.0,106100.0,0.11764821]
[1762753821081,1.48911467,106110.0,106100.0,0.11764821]
[1762753821475,1.48864347,106110.0,106100.0,0.11764821]
[1762753821675,2.25772385,106110.0,106100.0,0.11764821]
[1762753821968,1.4978578,106110.0,106100.0,0.11764821]
[1762753828326,2.25819505,106110.0,106100.0,0.11764821]
[1762753828522,2.35629678,106110.0,106100.0,0.11764821]
[1762753828728,1.59595953,106110.0,106100.0,0.11764821]
[1762753829040,1.4978578,106110.0,106100.0,0.11764821]
[1762753829235,0.73752055,106110.0,106100.0,0.11764821]
[1762753829397,1.4978578,106110.0,106100.0,0.11764821]
[1762753829601,1.49789663,106110.0,106100.0,0.11764821]
[1762753833912,2.25823388,106110.0,106100.0,0.11764821]
[1762753834152,2.35633561,106110.0,106100.0,0.11764821]
[1762753834285,2.3765939,106110.0,106100.0,0.11764821]
[1762753834693,2.35912617,106110.0,106100.0,0.11764821]
[1762753834895,2.37671057,106110.0,106100.0,0.11764821]
[1762753836450,0.75793434,106110.0,106100.0,0.11764821]
[1762753836663,2.27860884,106110.0,106100.0,0.11764821]
[1762753837428,2.27813764,106110.0,106100.0,0.11764821]
[1762753837616,2.27860884,106110.0,106100.0,0.11764821]
[1762753837809,2.27813764,106110.0,106100.0,0.11764821]
[1762753838015,2.37623937,106110.0,106100.0,0.11764821]
[1762753838265,2.40454313,106110.0,106100.0,0.11764821]
[1762753838921,2.40254313,106110.0,106100.0,0.11764821]
[1762753839095,2.39954313,106110.0,106100.0,0.11764821]
[1762753839334,2.40654313,106110.0,106100.0,0.11764821]
[1762753841503,2.62113313,106110.0,106100.0,0.11764821]
[1762753842121,2.39299411,106110.0,106100.0,0.11764821]
[1762753842950,1.52831706,106110.0,106100.0,0.11764821]
[1762753843937,1.5000133,106110.0,106100.0,0.11764821]
[1762753844121,1.24656755,106110.0,106100.0,0.11764821]
[1762753844681,1.49526812,106110.0,106100.0,0.11764821]
[1762753844838,1.24182237,106110.0,106100.0,0.11764821]
[1762753846801,1.24155551,106110.0,106100.0,0.11764821]
[1762753847287,1.23277355,106110.0,106100.0,0.11764821]
[1762753848743,0.61809828,106110.0,106100.0,0.12948016]
[1762753848923,0.87154403,106110.0,106100.0,0.12948016]
[1762753849326,1.12498978,106110.0,106100.0,0.12948016]
[1762753849504,0.87154403,106110.0,106100.0,0.12948016]
[1762753849938,0.258916,106110.0,106100.0,0.38292591]
[1762753850139,0.007,106110.0,106100.0,0.82487307]
[1762753850342,0.007,106110.0,106100.0,0.82534432]
[1762753850917,0.004,106110.0,106100.0,0.82534432]
[1762753851146,0.03684,106120.0,106110.0,0.18848364]
[1762753851308,0.03684,106120.0,106110.0,0.87858815]
[1762753851516,0.01194,106120.0,106110.0,0.85973979]
[1762753851949,0.01194,106120.0,106110.0,0.85926944]
[1762753852280,0.01194,106130.0,106120.0,0.18846588]
[1762753852416,0.01194,106130.0,106120.0,0.71420396]
[1762753852626,0.01194,106130.0,106120.0,0.72381758]
[1762753852831,0.03603,106140.0,106130.0,0.18844812]
[1762753853047,0.01194,106140.0,106130.0,0.76113219]
[1762753853255,0.0361,106150.0,106140.0,0.18843037]
[1762753853499,0.01201,106150.0,106140.0,0.20026232]
[1762753853708,0.05204,106150.0,106140.0,0.20026232]
[1762753853916,0.05204,106150.0,106140.0,0.45370807]
[1762753854336,0.24045262,106150.0,106140.0,0.45375628]
[1762753855200,0.05204,106150.0,106140.0,0.45375628]
[1762753855564,0.02795,106150.0,106140.0,0.45375628]
[1762753855759,0.01201,106150.0,106140.0,0.70720203]
[1762753856762,0.01201,106150.0,106140.0,0.70767176]
[1762753857197,0.21636262,106150.0,106140.0,0.26579564]
[1762753857384,0.74734412,106150.0,106140.0,4.821e-05]
[1762753857601,0.49389837,106150.0,106140.0,4.821e-05]
[1762753858265,0.74734412,106150.0,106140.0,4.821e-05]
[1762753859253,0.49389837,106150.0,106140.0,4.821e-05]
[1762753859410,0.24045262,106150.0,106140.0,4.821e-05]
[1762753859609,0.49389837,106150.0,106140.0,4.821e-05]
[1762753861065,0.74734412,106150.0,106140.0,4.821e-05]
[1762753863074,0.49389837,106150.0,106140.0,0.18847858]
[1762753863287,0.24045262,106150.0,106140.0,0.25953574]
[1762753863892,0.24045262,106150.0,106140.0,0.07110537]
[1762753864104,0.49389837,106150.0,106140.0,0.18847858]
[1762753865138,0.24045262,106150.0,106140.0,0.18847858]
[1762753865481,0.21636262,106150.0,106140.0,0.46076736]
[1762753865684,0.21636262,106150.0,106140.0,0.18847858]
[1762753865888,0.24045262,106150.0,106140.0,0.20732161]
[1762753866046,0.24045262,106150.0,106140.0,0.30421384]
[1762753866256,0.24045262,106150.0,106140.0,0.28537081]
[1762753867213,0.05204,106150.0,106140.0,0.28537081]
[1762753867372,0.05204,106150.0,106140.0,0.28584143]
[1762753867580,0.05204,106150.0,106140.0,0.28537081]
[1762753867787,0.01201,106150.0,106140.0,0.79226231]
[1762753867979,0.19998487,106160.0,106150.0,0.18841262]
[1762753868188,0.19998487,106160.0,106150.0,0.47374108]
[1762753868541,0.51529988,106170.0,106160.0,0.18839487]
[1762753868542,0.23356905,106170.0,106160.0,0.18839487]
[1762753868725,0.4870148,106170.0,106160.0,0.18839487]
[1762753868856,0.5029548,106170.0,106160.0,0.18839487]
[1762753869057,0.24950905,106170.0,106160.0,0.21685507]
[1762753869470,0.5029548,106170.0,106160.0,0.21685507]
[1762753869760,0.25050905,106170.0,106160.0,0.21685507]
[1762753870689,0.25250905,106170.0,106160.0,0.21685507]
[1762753871104,0.25241598,106170.0,106160.0,0.21685507]
[1762753871745,0.25241598,106170.0,106160.0,0.47030082]
[1762753871972,0.25241598,106170.0,106160.0,0.0284602]
[1762753872183,0.25241598,106170.0,106160.0,0.21685507]
[1762753873605,0.24299713,106170.0,106160.0,0.21685507]
[1762753873808,0.24199713,106170.0,106160.0,0.21685507]
[1762753874049,0.49344288,106170.0,106160.0,0.0284602]
[1762753874260,0.51090822,106170.0,106160.0,0.0284602]
[1762753874664,0.18839487,106160.0,106150.0,0.20192169]
[1762753874845,0.21592487,106160.0,106150.0,0.20145246]
[1762753875043,0.21592487,106160.0,106140.0,0.19837032]
[1762753875044,0.49346062,106160.0,106140.0,0.19837032]
[1762753875240,0.21594262,106150.0,106140.0,0.18894881]
[1762753875445,0.49347837,106150.0,106140.0,0.18847858]
[1762753875642,0.49347837,106150.0,106140.0,4.821e-05]
[1762753876200,0.51095934,106150.0,106140.0,4.821e-05]
[1762753876611,0.76440509,106150.0,106140.0,4.821e-05]
[1762753876744,0.51095934,106150.0,106140.0,4.821e-05]
[1762753876955,0.51095934,106150.0,106140.0,0.00251794]
[1762753876956,0.59514862,106150.0,106140.0,0.00251794]
[1762753877300,0.59514862,106150.0,106140.0,0.00504821]
[1762753877614,0.59514862,106150.0,106140.0,0.00204821]
[1762753877946,0.59514862,106150.0,106140.0,0.00404821]
[1762753878716,0.25751359,106150.0,106140.0,0.00404821]
[1762753879483,0.59514862,106150.0,106140.0,0.00404821]
[1762753881266,0.60392186,106150.0,106140.0,0.00404821]
[1762753881474,0.26628683,106150.0,106140.0,0.19247858]
[1762753881701,0.26628683,106150.0,106140.0,0.26626619]
[1762753881893,0.26628683,106150.0,106140.0,0.07783582]